[Event "Titled Tuesday Blitz March 22 Early 2022"]
[White "Matlakov, Maxim"]
[Black "Salinas Herrera, Pablo"]
[WhiteFideId "4168003"]
[BlackFideId "3407128"]
[WhiteElo "2669"]
[BlackElo "2541"]
[Result "1-0"]
[Round "06"]
[TimeControl "180+1"]
[Date "2022.03.22"]
[WhiteClock "0:01:27"]
[BlackClock "0:00:17"]

1. e4 {[%clk 0:02:58]}  c5 {[%clk 0:02:58]} 2. Nf3 {[%clk 0:02:58]}  e6 {[%clk 0:02:59]} 3. g3 {[%clk 0:02:57]}  Nc6 {[%clk 0:02:59]} 4. Bg2 {[%clk 0:02:57]}  Nf6 {[%clk 0:03:00]} 5. d3 {[%clk 0:02:55]}  d6 {[%clk 0:02:55]} 6. O-O {[%clk 0:02:54]}  Be7 {[%clk 0:02:56]} 7. c4 {[%clk 0:02:54]}  O-O {[%clk 0:02:56]} 8. Nc3 {[%clk 0:02:54]}  Bd7 {[%clk 0:02:40]} 9. d4 {[%clk 0:02:50]}  cxd4 {[%clk 0:02:40]} 10. Nxd4 {[%clk 0:02:51]}  Nxd4 {[%clk 0:02:41]} 11. Qxd4 {[%clk 0:02:51]}  Bc6 {[%clk 0:02:41]} 12. b3 {[%clk 0:02:47]}  Qa5 {[%clk 0:02:37]} 13. Bb2 {[%clk 0:02:44]}  Rfc8 {[%clk 0:02:38]} 14. Rfd1 {[%clk 0:02:43]}  Bf8 {[%clk 0:02:38]} 15. h3 {[%clk 0:02:37]}  a6 {[%clk 0:02:38]} 16. a4 {[%clk 0:02:06]}  Be8 {[%clk 0:01:12]} 17. Ba3 {[%clk 0:02:02]}  b5 {[%clk 0:00:58]} 18. axb5 {[%clk 0:01:50]}  axb5 {[%clk 0:00:58]} 19. Nxb5 {[%clk 0:01:47]}  Bxb5 {[%clk 0:00:54]} 20. Bxd6 {[%clk 0:01:43]}  Qd8 {[%clk 0:00:28]} 21. Rxa8 {[%clk 0:01:42]}  Rxa8 {[%clk 0:00:28]} 22. cxb5 {[%clk 0:01:39]}  Bxd6 {[%clk 0:00:25]} 23. Qxd6 {[%clk 0:01:40]}  Qxd6 {[%clk 0:00:23]} 24. Rxd6 {[%clk 0:01:40]}  Rb8 {[%clk 0:00:23]} 25. b6 {[%clk 0:01:34]}  Kf8 {[%clk 0:00:23]} 26. e5 {[%clk 0:01:34]}  Ne8 {[%clk 0:00:23]} 27. Rc6 {[%clk 0:01:34]}  Ke7 {[%clk 0:00:23]} 28. Bf1 {[%clk 0:01:30]}  f6 {[%clk 0:00:22]} 29. f4 {[%clk 0:01:30]}  g5 {[%clk 0:00:22]} 30. Bc4 {[%clk 0:01:29]}  gxf4 {[%clk 0:00:21]} 31. gxf4 {[%clk 0:01:29]}  fxe5 {[%clk 0:00:21]} 32. fxe5 {[%clk 0:01:30]}  Ng7 {[%clk 0:00:18]} 33. Rc7+ {[%clk 0:01:29]}  Kf8 {[%clk 0:00:19]} 34. b7 {[%clk 0:01:30]}  Ne8 {[%clk 0:00:19]} 35. Rd7 {[%clk 0:01:28]}  h5 {[%clk 0:00:17]} 36. h4 {[%clk 0:01:28]}  Ng7 {[%clk 0:00:17]} 37. Ba6 {[%clk 0:01:27]}  Nf5 {[%clk 0:00:17]} 38. Rc7 {[%clk 0:01:27]}  Ne7 {[%clk 0:00:17]} 39. Rc8+ {[%clk 0:01:27]} 1-0


[Site "https://www.chess.com"]

[Event "Titled Tuesday Blitz March 22 Early 2022"]
[White "Mena, Ailen Oriana"]
[Black "Marcziter, Dmitrii"]
[WhiteFideId "3902773"]
[BlackFideId "13900765"]
[WhiteElo "1534"]
[BlackElo "2155"]
[Result "0-1"]
[Round "06"]
[TimeControl "180+1"]
[Date "2022.03.22"]
[WhiteClock "0:00:03"]
[BlackClock "0:01:16"]

1. e4 {[%clk 0:03:00]}  c5 {[%clk 0:02:57]} 2. c3 {[%clk 0:03:00]}  d5 {[%clk 0:02:56]} 3. exd5 {[%clk 0:02:57]}  Qxd5 {[%clk 0:02:57]} 4. d4 {[%clk 0:02:53]}  Nf6 {[%clk 0:02:58]} 5. Nf3 {[%clk 0:02:52]}  Bg4 {[%clk 0:02:57]} 6. Qa4+ {[%clk 0:02:51]}  Bd7 {[%clk 0:02:56]} 7. Qb3 {[%clk 0:02:41]}  Qe4+ {[%clk 0:02:47]} 8. Be2 {[%clk 0:02:31]}  e6 {[%clk 0:02:42]} 9. Ng5 {[%clk 0:02:18]}  Qd5 {[%clk 0:02:35]} 10. c4 {[%clk 0:02:02]}  Qc6 {[%clk 0:02:29]} 11. Bf3 {[%clk 0:01:58]}  Qc7 {[%clk 0:02:23]} 12. Qxb7 {[%clk 0:01:41]}  Qxb7 {[%clk 0:02:17]} 13. Bxb7 {[%clk 0:01:41]}  Bc6 {[%clk 0:02:17]} 14. Bxa8 {[%clk 0:01:40]}  Bxa8 {[%clk 0:02:17]} 15. dxc5 {[%clk 0:01:23]}  Bxc5 {[%clk 0:02:13]} 16. O-O {[%clk 0:01:22]}  h6 {[%clk 0:02:09]} 17. Nf3 {[%clk 0:01:02]}  Nbd7 {[%clk 0:02:08]} 18. Nc3 {[%clk 0:01:01]}  Ke7 {[%clk 0:02:06]} 19. Nd2 {[%clk 0:00:42]}  Ne5 {[%clk 0:02:01]} 20. a3 {[%clk 0:00:41]}  Bd4 {[%clk 0:01:59]} 21. Nb5 {[%clk 0:00:36]}  Bb6 {[%clk 0:01:57]} 22. b4 {[%clk 0:00:33]}  a6 {[%clk 0:01:56]} 23. Nc3 {[%clk 0:00:23]}  Bd4 {[%clk 0:01:56]} 24. Bb2 {[%clk 0:00:16]}  Nd3 {[%clk 0:01:55]} 25. Rab1 {[%clk 0:00:14]}  Nxb2 {[%clk 0:01:55]} 26. Rxb2 {[%clk 0:00:14]}  Bxc3 {[%clk 0:01:55]} 27. Rc2 {[%clk 0:00:15]}  Be5 {[%clk 0:01:53]} 28. Re1 {[%clk 0:00:15]}  Bf4 {[%clk 0:01:52]} 29. c5 {[%clk 0:00:14]}  Bc6 {[%clk 0:01:50]} 30. Nc4 {[%clk 0:00:14]}  Rd8 {[%clk 0:01:47]} 31. h3 {[%clk 0:00:13]}  Ba4 {[%clk 0:01:43]} 32. Rc3 {[%clk 0:00:09]}  Nd5 {[%clk 0:01:40]} 33. Rf3 {[%clk 0:00:08]}  Bb8 {[%clk 0:01:30]} 34. g3 {[%clk 0:00:07]}  Bc2 {[%clk 0:01:27]} 35. Na5 {[%clk 0:00:06]}  Rc8 {[%clk 0:01:25]} 36. Kg2 {[%clk 0:00:02]}  Nf6 {[%clk 0:01:23]} 37. h4 {[%clk 0:00:02]}  Be4 {[%clk 0:01:23]} 38. Rxe4 {[%clk 0:00:01]}  Nxe4 {[%clk 0:01:23]} 39. Re3 {[%clk 0:00:01]}  Nf6 {[%clk 0:01:21]} 40. f3 {[%clk 0:00:02]}  Nd5 {[%clk 0:01:21]} 41. Rd3 {[%clk 0:00:02]}  Bc7 {[%clk 0:01:19]} 42. Rd2 {[%clk 0:00:02]}  Bxa5 {[%clk 0:01:19]} 43. bxa5 {[%clk 0:00:03]}  Rxc5 {[%clk 0:01:19]} 44. Rd3 {[%clk 0:00:03]}  Rxa5 {[%clk 0:01:19]} 45. f4 {[%clk 0:00:03]}  Kd6 {[%clk 0:01:18]} 46. Kf3 {[%clk 0:00:03]}  Ra4 {[%clk 0:01:18]} 47. f5 {[%clk 0:00:03]}  e5 {[%clk 0:01:17]} 48. g4 {[%clk 0:00:03]}  f6 {[%clk 0:01:16]} 0-1


[Site "https://www.chess.com"]

[Event "Titled Tuesday Blitz March 22 Early 2022"]
[White "Mikhailovsky, Vladimir"]
[Black "Krishnan, Varun"]
[WhiteFideId "34105414"]
[BlackFideId "5054508"]
[WhiteElo "2371"]
[BlackElo "2609"]
[Result "1-0"]
[Round "06"]
[TimeControl "180+1"]
[Date "2022.03.22"]
[WhiteClock "0:00:11"]
[BlackClock "0:00:06"]

1. c4 {[%clk 0:03:00]}  e6 {[%clk 0:02:28]} 2. Nc3 {[%clk 0:02:54]}  d5 {[%clk 0:02:28]} 3. d4 {[%clk 0:02:52]}  Be7 {[%clk 0:02:28]} 4. Bf4 {[%clk 0:02:43]}  Nf6 {[%clk 0:02:28]} 5. e3 {[%clk 0:02:42]}  O-O {[%clk 0:02:28]} 6. a3 {[%clk 0:02:40]}  b6 {[%clk 0:02:27]} 7. cxd5 {[%clk 0:02:38]}  exd5 {[%clk 0:02:27]} 8. Bd3 {[%clk 0:02:39]}  Bb7 {[%clk 0:02:27]} 9. Nge2 {[%clk 0:02:39]}  c5 {[%clk 0:02:27]} 10. Qc2 {[%clk 0:02:39]}  Nbd7 {[%clk 0:02:24]} 11. O-O {[%clk 0:02:38]}  Rc8 {[%clk 0:02:23]} 12. Bf5 {[%clk 0:02:32]}  h6 {[%clk 0:02:19]} 13. Rfd1 {[%clk 0:02:28]}  c4 {[%clk 0:02:12]} 14. Nb5 {[%clk 0:02:18]}  a6 {[%clk 0:02:07]} 15. Nd6 {[%clk 0:02:17]}  Bxd6 {[%clk 0:02:07]} 16. Bxd6 {[%clk 0:02:18]}  Re8 {[%clk 0:02:07]} 17. Bg3 {[%clk 0:01:32]}  Ne4 {[%clk 0:02:04]} 18. Qa4 {[%clk 0:01:20]}  b5 {[%clk 0:01:59]} 19. Qb4 {[%clk 0:01:20]}  Bc6 {[%clk 0:01:55]} 20. Qe1 {[%clk 0:00:50]}  Qf6 {[%clk 0:01:48]} 21. Bxe4 {[%clk 0:00:40]}  Rxe4 {[%clk 0:01:46]} 22. a4 {[%clk 0:00:41]}  Ree8 {[%clk 0:01:33]} 23. axb5 {[%clk 0:00:38]}  axb5 {[%clk 0:01:34]} 24. Ra6 {[%clk 0:00:38]}  Ra8 {[%clk 0:01:24]} 25. Rda1 {[%clk 0:00:37]}  Rxa6 {[%clk 0:01:24]} 26. Rxa6 {[%clk 0:00:38]}  Ra8 {[%clk 0:01:20]} 27. Qa5 {[%clk 0:00:39]}  Rxa6 {[%clk 0:01:18]} 28. Qxa6 {[%clk 0:00:40]}  Qg6 {[%clk 0:01:15]} 29. h3 {[%clk 0:00:29]}  b4 {[%clk 0:00:46]} 30. Nf4 {[%clk 0:00:24]}  Qb1+ {[%clk 0:00:44]} 31. Kh2 {[%clk 0:00:23]}  Qxb2 {[%clk 0:00:37]} 32. Qxc6 {[%clk 0:00:23]}  Nf6 {[%clk 0:00:37]} 33. Qc8+ {[%clk 0:00:19]}  Kh7 {[%clk 0:00:37]} 34. Qf5+ {[%clk 0:00:20]}  Kg8 {[%clk 0:00:37]} 35. Bh4 {[%clk 0:00:17]}  c3 {[%clk 0:00:25]} 36. Bxf6 {[%clk 0:00:17]}  gxf6 {[%clk 0:00:23]} 37. Nh5 {[%clk 0:00:12]}  Kf8 {[%clk 0:00:12]} 38. Qxf6 {[%clk 0:00:10]}  Ke8 {[%clk 0:00:12]} 39. Qd6 {[%clk 0:00:11]}  f5 {[%clk 0:00:11]} 40. Ng7+ {[%clk 0:00:11]}  Kf7 {[%clk 0:00:11]} 41. Nxf5 {[%clk 0:00:11]}  c2 {[%clk 0:00:10]} 42. Qe7+ {[%clk 0:00:11]}  Kg6 {[%clk 0:00:09]} 43. Qe6+ {[%clk 0:00:12]}  Kg5 {[%clk 0:00:06]} 44. f4+ {[%clk 0:00:12]}  Kh5 {[%clk 0:00:06]} 45. g4# {[%clk 0:00:11]} 1-0


[Site "https://www.chess.com"]

[Event "Titled Tuesday Blitz March 22 Early 2022"]
[White "Mikhalsky, Vladimir"]
[Black "Jeet, Jain"]
[WhiteFideId "14144352"]
[BlackFideId "5073022"]
[WhiteElo "2301"]
[BlackElo "2085"]
[Result "0-1"]
[Round "06"]
[TimeControl "180+1"]
[Date "2022.03.22"]
[WhiteClock "0:00:07"]
[BlackClock "0:01:13"]

1. c4 {[%clk 0:02:57]}  c6 {[%clk 0:02:58]} 2. g3 {[%clk 0:02:56]}  d5 {[%clk 0:02:58]} 3. Bg2 {[%clk 0:02:56]}  Nf6 {[%clk 0:02:58]} 4. Nf3 {[%clk 0:02:55]}  dxc4 {[%clk 0:02:54]} 5. Qc2 {[%clk 0:02:52]}  Be6 {[%clk 0:02:48]} 6. Na3 {[%clk 0:02:49]}  b5 {[%clk 0:02:46]} 7. Ng5 {[%clk 0:02:43]}  Bd5 {[%clk 0:02:25]} 8. e4 {[%clk 0:02:42]}  Be6 {[%clk 0:02:25]} 9. Nxe6 {[%clk 0:02:26]}  fxe6 {[%clk 0:02:26]} 10. e5 {[%clk 0:02:20]}  Nd5 {[%clk 0:02:25]} 11. O-O {[%clk 0:01:59]}  Nd7 {[%clk 0:02:24]} 12. Be4 {[%clk 0:01:55]}  Nxe5 {[%clk 0:02:21]} 13. Bxh7 {[%clk 0:01:54]}  Qb6 {[%clk 0:02:08]} 14. Bg6+ {[%clk 0:01:44]}  Kd7 {[%clk 0:02:03]} 15. d4 {[%clk 0:01:40]}  Qxd4 {[%clk 0:01:53]} 16. Rd1 {[%clk 0:01:35]}  Qg4 {[%clk 0:01:50]} 17. Be4 {[%clk 0:01:27]}  Kc7 {[%clk 0:01:41]} 18. Bxd5 {[%clk 0:01:20]}  exd5 {[%clk 0:01:38]} 19. Bf4 {[%clk 0:01:20]}  Qh5 {[%clk 0:01:33]} 20. g4 {[%clk 0:01:08]}  Qxg4+ {[%clk 0:01:31]} 21. Bg3 {[%clk 0:01:08]}  Kb7 {[%clk 0:01:30]} 22. Nxb5 {[%clk 0:00:57]}  Nf3+ {[%clk 0:01:24]} 23. Kf1 {[%clk 0:00:50]}  Nxh2+ {[%clk 0:01:24]} 24. Bxh2 {[%clk 0:00:38]}  Rxh2 {[%clk 0:01:25]} 25. Ke1 {[%clk 0:00:17]}  cxb5 {[%clk 0:01:13]} 26. Rxd5 {[%clk 0:00:09]}  Qg1+ {[%clk 0:01:12]} 27. Ke2 {[%clk 0:00:07]}  Qxf2+ {[%clk 0:01:13]} 0-1


[Site "https://www.chess.com"]

[Event "Titled Tuesday Blitz March 22 Early 2022"]
[White "Milanovic, Marko"]
[Black "Petrova, Irina"]
[WhiteFideId "980129"]
[BlackFideId "14124122"]
[WhiteElo "2159"]
[BlackElo "1993"]
[Result "1-0"]
[Round "06"]
[TimeControl "180+1"]
[Date "2022.03.22"]
[WhiteClock "0:00:01"]
[BlackClock "0:00:01"]

1. e4 {[%clk 0:03:00]}  d6 {[%clk 0:03:00]} 2. d4 {[%clk 0:03:00]}  Nf6 {[%clk 0:03:01]} 3. Nc3 {[%clk 0:03:00]}  e5 {[%clk 0:03:01]} 4. Nf3 {[%clk 0:03:00]}  Nbd7 {[%clk 0:03:00]} 5. Bc4 {[%clk 0:02:59]}  Be7 {[%clk 0:03:01]} 6. h3 {[%clk 0:02:57]}  O-O {[%clk 0:03:00]} 7. Be3 {[%clk 0:02:56]}  c6 {[%clk 0:03:00]} 8. a4 {[%clk 0:02:55]}  h6 {[%clk 0:02:57]} 9. O-O {[%clk 0:02:55]}  Re8 {[%clk 0:02:58]} 10. Qb1 {[%clk 0:02:52]}  Bf8 {[%clk 0:02:52]} 11. Qa2 {[%clk 0:02:52]}  Qe7 {[%clk 0:02:52]} 12. Nh4 {[%clk 0:02:44]}  Nb6 {[%clk 0:02:52]} 13. Bb3 {[%clk 0:02:39]}  Be6 {[%clk 0:02:46]} 14. Nf5 {[%clk 0:02:35]}  Bxf5 {[%clk 0:02:45]} 15. exf5 {[%clk 0:02:36]}  exd4 {[%clk 0:02:43]} 16. Bxd4 {[%clk 0:02:34]}  d5 {[%clk 0:02:43]} 17. Rae1 {[%clk 0:02:25]}  Qd6 {[%clk 0:02:42]} 18. a5 {[%clk 0:02:15]}  Nbd7 {[%clk 0:02:18]} 19. Qb1 {[%clk 0:01:59]}  Qf4 {[%clk 0:02:16]} 20. Qd1 {[%clk 0:01:55]}  Qxf5 {[%clk 0:02:12]} 21. a6 {[%clk 0:01:55]}  b6 {[%clk 0:02:02]} 22. Ne2 {[%clk 0:01:53]}  c5 {[%clk 0:01:56]} 23. Ng3 {[%clk 0:01:50]}  Qg6 {[%clk 0:01:50]} 24. Bxf6 {[%clk 0:01:44]}  Nxf6 {[%clk 0:01:51]} 25. Bxd5 {[%clk 0:01:44]}  Nxd5 {[%clk 0:01:44]} 26. Qxd5 {[%clk 0:01:45]}  Qxc2 {[%clk 0:01:44]} 27. Qb7 {[%clk 0:01:38]}  Qxb2 {[%clk 0:01:32]} 28. Rxe8 {[%clk 0:01:36]}  Rxe8 {[%clk 0:01:33]} 29. Qxa7 {[%clk 0:01:37]}  Qb5 {[%clk 0:01:19]} 30. Qb7 {[%clk 0:01:23]}  Re7 {[%clk 0:01:18]} 31. Qc8 {[%clk 0:01:18]}  Ra7 {[%clk 0:01:10]} 32. Ra1 {[%clk 0:01:16]}  c4 {[%clk 0:00:56]} 33. Nf5 {[%clk 0:01:05]}  c3 {[%clk 0:00:55]} 34. Nd4 {[%clk 0:00:27]}  Qb2 {[%clk 0:00:44]} 35. Re1 {[%clk 0:00:25]}  Qd2 {[%clk 0:00:36]} 36. Re4 {[%clk 0:00:20]}  b5 {[%clk 0:00:18]} 37. Nxb5 {[%clk 0:00:18]}  c2 {[%clk 0:00:14]} 38. Rc4 {[%clk 0:00:19]}  Qd1+ {[%clk 0:00:11]} 39. Kh2 {[%clk 0:00:18]}  Rxa6 {[%clk 0:00:07]} 40. Rxc2 {[%clk 0:00:16]}  Rf6 {[%clk 0:00:06]} 41. Ra2 {[%clk 0:00:09]}  Qd5 {[%clk 0:00:05]} 42. Nc3 {[%clk 0:00:06]}  Qe5+ {[%clk 0:00:04]} 43. g3 {[%clk 0:00:07]}  Qd4 {[%clk 0:00:03]} 44. Kg2 {[%clk 0:00:07]}  Qd3 {[%clk 0:00:01]} 45. Ra8 {[%clk 0:00:07]}  Qf3+ {[%clk 0:00:01]} 46. Kh2 {[%clk 0:00:05]}  Kh7 {[%clk 0:00:01]} 47. Ra2 {[%clk 0:00:01]} 1-0


[Site "https://www.chess.com"]

[Event "Titled Tuesday Blitz March 22 Early 2022"]
[White "Miszler, Levente"]
[Black "Mangialardo, Tiago Carvalho"]
[WhiteFideId "763276"]
[BlackFideId "2130718"]
[WhiteElo "1966"]
[BlackElo "2092"]
[Result "1-0"]
[Round "06"]
[TimeControl "180+1"]
[Date "2022.03.22"]
[WhiteClock "0:02:16"]
[BlackClock "0:00:01"]

1. e4 {[%clk 0:03:00]}  e5 {[%clk 0:02:58]} 2. Nf3 {[%clk 0:03:00]}  Nc6 {[%clk 0:02:58]} 3. Bc4 {[%clk 0:02:59]}  Bc5 {[%clk 0:02:58]} 4. c3 {[%clk 0:02:58]}  Nf6 {[%clk 0:02:55]} 5. d4 {[%clk 0:02:57]}  exd4 {[%clk 0:02:52]} 6. b4 {[%clk 0:02:56]}  Bb6 {[%clk 0:02:46]} 7. e5 {[%clk 0:02:55]}  d5 {[%clk 0:02:37]} 8. exf6 {[%clk 0:02:54]}  dxc4 {[%clk 0:02:35]} 9. Qe2+ {[%clk 0:02:52]}  Be6 {[%clk 0:02:20]} 10. b5 {[%clk 0:02:51]}  d3 {[%clk 0:01:56]} 11. Qe4 {[%clk 0:02:51]}  Qxf6 {[%clk 0:00:40]} 12. bxc6 {[%clk 0:02:48]}  O-O {[%clk 0:00:37]} 13. cxb7 {[%clk 0:02:46]}  Rab8 {[%clk 0:00:37]} 14. O-O {[%clk 0:02:45]}  Rfd8 {[%clk 0:00:26]} 15. Bg5 {[%clk 0:02:44]}  Bd5 {[%clk 0:00:14]} 16. Bxf6 {[%clk 0:02:43]}  Bxe4 {[%clk 0:00:13]} 17. Bxd8 {[%clk 0:02:43]}  Rxd8 {[%clk 0:00:12]} 18. Nbd2 {[%clk 0:02:43]}  Bd5 {[%clk 0:00:07]} 19. Rfe1 {[%clk 0:02:39]}  Rb8 {[%clk 0:00:06]} 20. a4 {[%clk 0:02:38]}  a5 {[%clk 0:00:05]} 21. Ne5 {[%clk 0:02:35]}  f6 {[%clk 0:00:03]} 22. Nd7 {[%clk 0:02:33]}  Rxb7 {[%clk 0:00:03]} 23. Rab1 {[%clk 0:02:29]}  Kf7 {[%clk 0:00:02]} 24. Ne4 {[%clk 0:02:16]}  c6 {[%clk 0:00:01]} 1-0


[Site "https://www.chess.com"]

[Event "Titled Tuesday Blitz March 22 Early 2022"]
[White "Moroni, Luca Jr"]
[Black "Tsydypov, Zhamsaran"]
[WhiteFideId "865834"]
[BlackFideId "4108566"]
[WhiteElo "2573"]
[BlackElo "2614"]
[Result "0-1"]
[Round "06"]
[TimeControl "180+1"]
[Date "2022.03.22"]
[WhiteClock "0:00:02"]
[BlackClock "0:01:09"]

1. d4 {[%clk 0:03:00]}  Nf6 {[%clk 0:02:54]} 2. Bf4 {[%clk 0:03:00]}  d6 {[%clk 0:02:53]} 3. Nc3 {[%clk 0:02:57]}  Nbd7 {[%clk 0:02:48]} 4. Nf3 {[%clk 0:02:57]}  g6 {[%clk 0:02:47]} 5. e4 {[%clk 0:02:56]}  Bg7 {[%clk 0:02:46]} 6. Qd2 {[%clk 0:02:57]}  c5 {[%clk 0:02:46]} 7. Bh6 {[%clk 0:02:43]}  Bxh6 {[%clk 0:02:44]} 8. Qxh6 {[%clk 0:02:44]}  cxd4 {[%clk 0:02:44]} 9. Nxd4 {[%clk 0:02:44]}  a6 {[%clk 0:02:43]} 10. O-O-O {[%clk 0:02:25]}  b5 {[%clk 0:02:25]} 11. f4 {[%clk 0:02:18]}  Qc7 {[%clk 0:02:19]} 12. Bd3 {[%clk 0:01:36]}  Bb7 {[%clk 0:02:17]} 13. Rhe1 {[%clk 0:01:35]}  O-O-O {[%clk 0:02:09]} 14. Kb1 {[%clk 0:01:27]}  e5 {[%clk 0:02:09]} 15. Nf3 {[%clk 0:01:25]}  b4 {[%clk 0:02:02]} 16. Nd5 {[%clk 0:01:21]}  Nxd5 {[%clk 0:01:59]} 17. exd5 {[%clk 0:01:22]}  f6 {[%clk 0:01:59]} 18. fxe5 {[%clk 0:01:17]}  dxe5 {[%clk 0:01:49]} 19. Qh4 {[%clk 0:00:58]}  Qc5 {[%clk 0:01:27]} 20. Re4 {[%clk 0:00:54]}  Qxd5 {[%clk 0:01:24]} 21. Rxb4 {[%clk 0:00:29]}  Nc5 {[%clk 0:01:23]} 22. Bf5+ {[%clk 0:00:25]}  gxf5 {[%clk 0:01:23]} 23. Rxd5 {[%clk 0:00:26]}  Rxd5 {[%clk 0:01:22]} 24. b3 {[%clk 0:00:24]}  Ne4 {[%clk 0:01:21]} 25. Kb2 {[%clk 0:00:20]}  Rd7 {[%clk 0:01:16]} 26. Qh3 {[%clk 0:00:16]}  Nd6 {[%clk 0:01:16]} 27. Nh4 {[%clk 0:00:13]}  Be4 {[%clk 0:01:16]} 28. Qe3 {[%clk 0:00:08]}  Rc7 {[%clk 0:01:15]} 29. Qb6 {[%clk 0:00:08]}  Rxc2+ {[%clk 0:01:14]} 30. Ka3 {[%clk 0:00:07]}  Kd7 {[%clk 0:01:12]} 31. Ra4 {[%clk 0:00:04]}  Nb5+ {[%clk 0:01:11]} 32. Kb4 {[%clk 0:00:04]}  Nc7 {[%clk 0:01:09]} 33. Qxf6 {[%clk 0:00:02]}  Nd5+ {[%clk 0:01:09]} 0-1


[Site "https://www.chess.com"]

[Event "Titled Tuesday Blitz March 22 Early 2022"]
[White "Narayanan.S.L"]
[Black "Boros, Denes"]
[WhiteFideId "5058422"]
[BlackFideId "722340"]
[WhiteElo "2494"]
[BlackElo "2464"]
[Result "1-0"]
[Round "06"]
[TimeControl "180+1"]
[Date "2022.03.22"]
[WhiteClock "0:00:46"]
[BlackClock "0:00:36"]

1. d4 {[%clk 0:03:00]}  Nf6 {[%clk 0:02:57]} 2. Bf4 {[%clk 0:03:01]}  d5 {[%clk 0:02:54]} 3. e3 {[%clk 0:03:01]}  Bg4 {[%clk 0:02:53]} 4. f3 {[%clk 0:03:00]}  Bd7 {[%clk 0:02:52]} 5. c4 {[%clk 0:03:00]}  c5 {[%clk 0:02:46]} 6. Nc3 {[%clk 0:02:44]}  cxd4 {[%clk 0:02:43]} 7. exd4 {[%clk 0:02:45]}  Bc6 {[%clk 0:02:38]} 8. Bd3 {[%clk 0:02:39]}  Nbd7 {[%clk 0:02:35]} 9. cxd5 {[%clk 0:02:37]}  Nxd5 {[%clk 0:02:34]} 10. Nxd5 {[%clk 0:02:38]}  Bxd5 {[%clk 0:02:35]} 11. Ne2 {[%clk 0:02:39]}  e6 {[%clk 0:02:29]} 12. O-O {[%clk 0:02:39]}  Be7 {[%clk 0:02:26]} 13. Nc3 {[%clk 0:02:39]}  Bc6 {[%clk 0:02:26]} 14. Kh1 {[%clk 0:02:32]}  O-O {[%clk 0:02:25]} 15. Qc2 {[%clk 0:02:32]}  h6 {[%clk 0:02:23]} 16. Rad1 {[%clk 0:02:32]}  Rc8 {[%clk 0:02:22]} 17. Qd2 {[%clk 0:02:28]}  Bg5 {[%clk 0:02:21]} 18. Bxg5 {[%clk 0:02:26]}  Qxg5 {[%clk 0:02:22]} 19. f4 {[%clk 0:02:26]}  Qh4 {[%clk 0:02:13]} 20. f5 {[%clk 0:02:24]}  Nf6 {[%clk 0:02:09]} 21. Qf4 {[%clk 0:02:14]}  Qxf4 {[%clk 0:01:50]} 22. Rxf4 {[%clk 0:02:14]}  Nd5 {[%clk 0:01:48]} 23. Rf2 {[%clk 0:02:13]}  exf5 {[%clk 0:01:44]} 24. Bxf5 {[%clk 0:02:12]}  Rcd8 {[%clk 0:01:44]} 25. Kg1 {[%clk 0:02:01]}  Rd6 {[%clk 0:01:37]} 26. Ne4 {[%clk 0:01:57]}  Rdd8 {[%clk 0:01:36]} 27. Nc3 {[%clk 0:01:57]}  g6 {[%clk 0:01:35]} 28. Bc2 {[%clk 0:01:52]}  Ne3 {[%clk 0:01:29]} 29. Rd3 {[%clk 0:01:52]}  Nxc2 {[%clk 0:01:17]} 30. Rxc2 {[%clk 0:01:53]}  Bd5 {[%clk 0:01:13]} 31. Nxd5 {[%clk 0:01:50]}  Rxd5 {[%clk 0:01:14]} 32. Rc7 {[%clk 0:01:50]}  Rfd8 {[%clk 0:01:12]} 33. Rxb7 {[%clk 0:01:50]}  Rxd4 {[%clk 0:01:12]} 34. Rxd4 {[%clk 0:01:50]}  Rxd4 {[%clk 0:01:13]} 35. h3 {[%clk 0:01:03]}  Rd2 {[%clk 0:01:09]} 36. a4 {[%clk 0:01:02]}  a5 {[%clk 0:01:08]} 37. g4 {[%clk 0:00:52]}  Kg7 {[%clk 0:01:06]} 38. Kf1 {[%clk 0:00:51]}  Rh2 {[%clk 0:01:03]} 39. Rb5 {[%clk 0:00:51]}  Rxh3 {[%clk 0:00:51]} 40. Rxa5 {[%clk 0:00:51]}  Rg3 {[%clk 0:00:51]} 41. Rb5 {[%clk 0:00:46]}  Rxg4 {[%clk 0:00:50]} 42. b4 {[%clk 0:00:47]}  h5 {[%clk 0:00:45]} 43. a5 {[%clk 0:00:47]}  Rf4+ {[%clk 0:00:38]} 44. Kg2 {[%clk 0:00:47]}  Rf6 {[%clk 0:00:38]} 45. Rb6 {[%clk 0:00:47]}  Rf4 {[%clk 0:00:36]} 46. a6 {[%clk 0:00:47]}  Rf3 {[%clk 0:00:36]} 47. Kxf3 {[%clk 0:00:46]} 1-0


[Site "https://www.chess.com"]

[Event "Titled Tuesday Blitz March 22 Early 2022"]
[White "Nenezic, Marko"]
[Black "Altman, Joshua"]
[WhiteFideId "912123"]
[BlackFideId "426210"]
[WhiteElo "2457"]
[BlackElo "1945"]
[Result "1-0"]
[Round "06"]
[TimeControl "180+1"]
[Date "2022.03.22"]
[WhiteClock "0:00:07"]
[BlackClock "0:00:15"]

1. Nf3 {[%clk 0:03:00]}  Nf6 {[%clk 0:03:00]} 2. c4 {[%clk 0:02:59]}  e6 {[%clk 0:03:00]} 3. Nc3 {[%clk 0:03:00]}  Bb4 {[%clk 0:02:52]} 4. g4 {[%clk 0:02:59]}  h6 {[%clk 0:02:38]} 5. Rg1 {[%clk 0:02:58]}  b6 {[%clk 0:02:30]} 6. Qc2 {[%clk 0:02:58]}  Bb7 {[%clk 0:02:30]} 7. h4 {[%clk 0:02:48]}  d6 {[%clk 0:02:20]} 8. g5 {[%clk 0:02:14]}  hxg5 {[%clk 0:02:16]} 9. hxg5 {[%clk 0:02:15]}  Nfd7 {[%clk 0:02:09]} 10. a3 {[%clk 0:02:00]}  Bxc3 {[%clk 0:02:09]} 11. Qxc3 {[%clk 0:02:01]}  e5 {[%clk 0:02:05]} 12. d4 {[%clk 0:02:00]}  Nc6 {[%clk 0:02:02]} 13. d5 {[%clk 0:01:47]}  Ne7 {[%clk 0:01:58]} 14. Bd2 {[%clk 0:01:27]}  Nc5 {[%clk 0:01:48]} 15. Qc2 {[%clk 0:01:27]}  a5 {[%clk 0:01:46]} 16. b3 {[%clk 0:01:27]}  Qd7 {[%clk 0:01:35]} 17. e4 {[%clk 0:01:26]}  a4 {[%clk 0:01:28]} 18. b4 {[%clk 0:01:25]}  Nb3 {[%clk 0:01:29]} 19. Rd1 {[%clk 0:01:23]}  Nxd2 {[%clk 0:01:27]} 20. Qxd2 {[%clk 0:01:21]}  Ng6 {[%clk 0:01:27]} 21. Rc1 {[%clk 0:01:14]}  c5 {[%clk 0:01:09]} 22. dxc6 {[%clk 0:01:01]}  Bxc6 {[%clk 0:01:08]} 23. Qe3 {[%clk 0:01:01]}  Qb7 {[%clk 0:01:04]} 24. Nd2 {[%clk 0:00:47]}  Nf4 {[%clk 0:00:53]} 25. f3 {[%clk 0:00:40]}  g6 {[%clk 0:00:46]} 26. Nb1 {[%clk 0:00:40]}  Kf8 {[%clk 0:00:45]} 27. Rd1 {[%clk 0:00:38]}  Rd8 {[%clk 0:00:44]} 28. Nc3 {[%clk 0:00:38]}  Kg7 {[%clk 0:00:43]} 29. b5 {[%clk 0:00:38]}  Bd7 {[%clk 0:00:31]} 30. Rxd6 {[%clk 0:00:35]}  Bh3 {[%clk 0:00:31]} 31. Rxd8 {[%clk 0:00:18]}  Rxd8 {[%clk 0:00:32]} 32. Nd5 {[%clk 0:00:17]}  Bxf1 {[%clk 0:00:28]} 33. Kxf1 {[%clk 0:00:17]}  Nxd5 {[%clk 0:00:22]} 34. exd5 {[%clk 0:00:15]}  Qc7 {[%clk 0:00:20]} 35. Kf2 {[%clk 0:00:14]}  Re8 {[%clk 0:00:15]} 36. Qe4 {[%clk 0:00:13]}  Qc5+ {[%clk 0:00:15]} 37. Kg2 {[%clk 0:00:14]}  Qxa3 {[%clk 0:00:15]} 38. Rh1 {[%clk 0:00:14]}  Qb2+ {[%clk 0:00:16]} 39. Kg3 {[%clk 0:00:14]}  Qd2 {[%clk 0:00:14]} 40. Qh4 {[%clk 0:00:08]}  Qf4+ {[%clk 0:00:12]} 41. Qxf4 {[%clk 0:00:09]}  exf4+ {[%clk 0:00:12]} 42. Kxf4 {[%clk 0:00:09]}  Rc8 {[%clk 0:00:13]} 43. Ke5 {[%clk 0:00:07]}  Rxc4 {[%clk 0:00:13]} 44. d6 {[%clk 0:00:07]}  Rc2 {[%clk 0:00:13]} 45. Rd1 {[%clk 0:00:06]}  Re2+ {[%clk 0:00:13]} 46. Kd5 {[%clk 0:00:06]}  Re8 {[%clk 0:00:13]} 47. Kc6 {[%clk 0:00:06]}  Rd8 {[%clk 0:00:13]} 48. d7 {[%clk 0:00:06]}  a3 {[%clk 0:00:14]} 49. Kc7 {[%clk 0:00:07]}  a2 {[%clk 0:00:14]} 50. Kxd8 {[%clk 0:00:07]}  a1=Q {[%clk 0:00:15]} 51. Rxa1 {[%clk 0:00:07]} 1-0


[Site "https://www.chess.com"]